bitfinex-derivatives/quotes_BTCF0:USTF0_20260214
["timestamp","ask_amount","ask_price","bid_price","bid_amount"]
[1771090563793,0.014339,69768.0,69763.0,0.01434]
[1771090564099,0.014339,69769.0,69764.0,0.17218]
[1771090564299,0.09460938,69778.0,69758.0,0.014341]
[1771090564600,0.09460938,69778.0,69759.0,0.15788]
[1771090564803,0.09460938,69778.0,69761.0,0.014341]
[1771090565395,0.09460938,69778.0,69760.0,0.014341]
[1771090566096,0.09460938,69778.0,69761.0,0.15788]
[1771090566597,0.09460938,69778.0,69762.0,0.01444]
[1771090566804,0.09460938,69778.0,69762.0,0.15788]
[1771090568097,0.09460938,69778.0,69749.0,0.014343]
[1771090568301,0.09460938,69778.0,69751.0,0.01444]
[1771090568502,0.09460938,69778.0,69752.0,0.14344]
[1771090568905,0.09460938,69778.0,69750.0,0.00016401]
[1771090569304,0.30988259,69777.0,69750.0,1e-08]
[1771090569599,0.014343,69749.0,69748.0,0.09634801]
[1771090569798,0.014343,69749.0,69748.0,0.11078801]
[1771090569995,0.014343,69749.0,69742.0,0.028688]
[1771090569996,0.09460938,69754.0,69743.0,0.01444]
[1771090570199,0.10904938,69754.0,69737.0,0.014345]
[1771090570400,0.10904938,69754.0,69738.0,0.15788]
[1771090570606,0.09460938,69752.0,69739.0,0.15788]
[1771090570796,0.09460938,69752.0,69740.0,0.14344]
[1771090571307,0.09460938,69750.0,69725.0,0.01444]
[1771090571506,0.014344,69746.0,69730.0,0.09209207]
[1771090571805,0.01444,69747.0,69735.0,0.014346]
[1771090572000,0.02869,69742.0,69736.0,0.01444]
[1771090572202,0.014345,69740.0,69736.0,0.01444]
[1771090572501,0.000101,69739.0,69736.0,0.01444]
[1771090572703,0.000101,69739.0,69736.0,0.028786]
[1771090572905,0.000101,69739.0,69736.0,0.01444]
[1771090573199,0.014346,69738.0,69736.0,0.01444]
[1771090573405,0.000101,69739.0,69737.0,0.01444]
[1771090573603,0.014345,69741.0,69738.0,0.01444]
[1771090573993,0.014345,69740.0,69738.0,0.01444]
[1771090574199,0.014345,69740.0,69736.0,0.14344]
[1771090574200,0.08544299,69746.0,69739.0,0.010993]
[1771090574499,0.08551164,69745.0,69740.0,0.01444]
[1771090574700,0.08551164,69745.0,69741.0,0.01444]
[1771090575008,0.08551164,69745.0,69720.0,0.04641501]
[1771090575306,0.08551164,69745.0,69723.0,0.172228]
[1771090575501,0.08551164,69745.0,69720.0,0.03206601]
[1771090575695,0.08551164,69745.0,69721.0,0.14348]
[1771090575905,0.08544299,69730.0,69701.0,0.10544377]
[1771090576098,0.14395536,69731.0,69703.0,0.014353]
[1771090576099,0.08544299,69728.0,69703.0,0.014353]
[1771090576300,0.08544299,69728.0,69711.0,0.014351]
[1771090576501,0.08544299,69728.0,69712.0,0.01444]
[1771090576694,0.01444,69729.0,69712.0,0.01444]
[1771090576695,0.01435,69713.0,69712.0,0.01444]
[1771090576898,0.014351,69712.0,69711.0,0.14348]
[1771090577104,0.014351,69712.0,69711.0,0.141758]
[1771090577306,0.01453353,69713.0,69698.0,0.10544377]
[1771090577307,0.00018353,69713.0,69698.0,0.10544377]
[1771090577601,0.014351,69712.0,69705.0,0.10544277]
[1771090577800,0.014351,69712.0,69706.0,0.01444]
[1771090578000,0.014351,69712.0,69699.0,0.14348]
[1771090578001,0.014351,69711.0,69699.0,0.014353]
[1771090578195,0.01453453,69713.0,69707.0,0.014352]
[1771090578402,0.014351,69712.0,69708.0,0.15792]
[1771090578605,0.014351,69711.0,69708.0,0.15792]
[1771090579510,0.01453453,69713.0,69703.0,0.014352]
[1771090579711,0.01453453,69713.0,69712.0,0.014351]
[1771090579712,0.00018353,69713.0,69712.0,0.014351]
[1771090579901,0.01435,69716.0,69712.0,0.01444]
[1771090580204,0.08544299,69727.0,69712.0,0.01444]
[1771090580510,0.014349,69718.0,69712.0,0.028791]
[1771090580701,0.014349,69718.0,69713.0,0.01435]
[1771090580897,0.01435,69716.0,69712.0,0.01444]
[1771090581102,0.01435,69718.0,69713.0,0.01435]
[1771090581305,0.014349,69720.0,69713.0,0.01435]
[1771090581506,0.014349,69719.0,69714.0,0.15796]
[1771090582011,0.01444,69726.0,69720.0,0.014349]
[1771090582213,0.014348,69724.0,69719.0,0.028789]
[1771090582399,0.014349,69723.0,69719.0,0.01444]
[1771090582598,0.014349,69722.0,69719.0,0.01444]
[1771090582805,0.25770999,69731.0,69719.0,0.01444]
[1771090583008,0.64190571,69802.0,69719.0,0.01444]
[1771090583009,0.01444,69743.0,69727.0,0.014347]
[1771090583206,0.08544299,69742.0,69728.0,0.01444]
[1771090583407,0.08544299,69742.0,69729.0,0.01444]
[1771090585208,0.08544299,69742.0,69729.0,0.028787]
[1771090585405,0.14352,69745.0,69735.0,0.014346]
[1771090585609,0.08544299,69744.0,69736.0,0.01444]
[1771090585809,0.08544299,69744.0,69702.0,0.71766]
[1771090585810,0.08544299,69744.0,69733.0,0.01444]
[1771090586110,0.08544299,69744.0,69731.0,0.01444]
[1771090586902,0.08544299,69744.0,69730.0,0.01444]
[1771090587106,0.14352,69745.0,69732.0,0.014346]
[1771090587302,0.14352,69745.0,69730.0,0.01444]
[1771090587607,0.22896299,69745.0,69732.0,0.014347]
[1771090588012,0.22896299,69745.0,69730.0,0.028787]
[1771090588607,0.08544299,69744.0,69730.0,0.01444]
[1771090588913,0.08544299,69742.0,69730.0,0.01444]
[1771090589412,0.01444,69743.0,69732.0,0.014346]
[1771090589607,0.01444,69743.0,69732.0,0.014347]
[1771090590115,0.09988299,69744.0,69733.0,0.01444]
[1771090590616,0.09988299,69744.0,69729.0,0.014347]
[1771090590808,0.09988299,69744.0,69730.0,0.028787]
[1771090591914,0.09988299,69744.0,69734.0,0.014346]
[1771090592114,0.01444,69744.0,69734.0,0.014346]
[1771090592310,0.01444,69744.0,69733.0,0.014346]
[1771090592808,0.09988299,69754.0,69739.0,0.014345]
[1771090593013,0.08544299,69752.0,69740.0,0.01444]
[1771090593214,0.09988299,69751.0,69740.0,0.01444]
[1771090595615,0.09988299,69751.0,69740.0,0.028785]
[1771090596105,0.01444,69751.0,69742.0,0.014344]
[1771090596310,0.01444,69751.0,69744.0,0.014344]
[1771090596506,0.01444,69751.0,69744.0,0.028688]
[1771090596713,0.08544299,69750.0,69721.0,0.09109077]
[1771090596917,0.08544299,69750.0,69728.0,0.014347]
[1771090597118,0.08544299,69750.0,69729.0,0.01444]
[1771090597520,0.08544299,69750.0,69715.0,0.10544077]
[1771090597819,0.15461156,69751.0,69718.0,0.014349]
[1771090597820,0.08544299,69748.0,69718.0,0.014349]
[1771090598015,0.08544299,69746.0,69718.0,0.014349]
[1771090598211,0.08544299,69746.0,69719.0,0.15796]
[1771090598718,0.08544299,69746.0,69713.0,0.01435]
[1771090598918,0.08544299,69744.0,69713.0,0.01435]
[1771090599122,0.08544299,69742.0,69714.0,0.15796]
[1771090599318,0.08544299,69740.0,69714.0,0.15796]
[1771090599619,0.14395536,69750.0,69714.0,0.15796]
[1771090599620,0.01448,69753.0,69735.0,0.09109077]
[1771090599920,0.08544299,69751.0,69736.0,0.158]
[1771090600114,0.08544299,69749.0,69736.0,0.01448]
[1771090600310,0.08544299,69747.0,69720.0,0.014349]
[1771090600513,0.23497588,69748.0,69721.0,0.14352]
[1771090600514,0.08544299,69745.0,69721.0,0.14352]
[1771090600716,0.08544299,69743.0,69721.0,0.158]
[1771090601823,0.08544299,69743.0,69722.0,0.01448]
[1771090602124,0.08544299,69743.0,69714.0,0.08480138]
[1771090602322,0.08544299,69743.0,69715.0,0.158]
[1771090602818,0.08544299,69743.0,69720.0,0.08914143]
[1771090603122,0.08544299,69743.0,69709.0,0.08914143]
[1771090603123,0.09070233,69742.0,69709.0,0.08914143]
[1771090603319,0.09070233,69740.0,69711.0,0.08914143]
[1771090603514,0.09070233,69740.0,69712.0,0.028831]
[1771090603721,0.09070233,69740.0,69713.0,0.14352]
[1771090603924,0.09070233,69740.0,69713.0,0.23266143]
[1771090604725,0.09070233,69738.0,69713.0,0.23266143]
[1771090604913,0.09070233,69736.0,69713.0,0.23266143]
[1771090605222,0.18081661,69743.0,69713.0,0.23266143]
[1771090605223,0.09070233,69734.0,69714.0,0.08914143]
[1771090605621,0.09070233,69734.0,69715.0,0.158]
[1771090606514,0.09070233,69734.0,69711.0,0.08914143]
[1771090606719,0.09070233,69734.0,69713.0,0.08914143]
[1771090606921,0.09070233,69734.0,69715.0,0.08914143]
[1771090607126,0.09070233,69734.0,69716.0,0.158]
[1771090608429,0.09070233,69734.0,69717.0,0.158]
[1771090609618,0.09070233,69734.0,69710.0,0.08914143]
[1771090609823,0.09070233,69734.0,69711.0,0.158]
[1771090610019,0.09070233,69734.0,69712.0,0.14352]
[1771090610627,0.09070233,69732.0,69706.0,0.08914143]
[1771090610828,0.09070233,69730.0,69700.0,0.10349443]
[1771090611026,0.09070233,69728.0,69701.0,0.08914143]
[1771090611327,0.09070233,69726.0,69702.0,0.158]
[1771090611523,0.09070233,69726.0,69705.0,0.08914143]
[1771090611834,0.09070233,69726.0,69706.0,0.01448]
[1771090612732,0.014351,69709.0,69706.0,0.01448]
[1771090612929,0.01448,69722.0,69706.0,0.01448]
[1771090614226,0.01448,69722.0,69706.0,0.10362143]
[1771090614432,0.01448,69722.0,69706.0,0.01448]
[1771090614927,0.01448,69722.0,69702.0,0.24701443]
[1771090614928,0.10518233,69722.0,69707.0,0.01448]
[1771090615133,0.10518233,69722.0,69708.0,0.14352]
[1771090615329,0.09070233,69721.0,69708.0,0.14352]
[1771090615527,0.09070233,69721.0,69700.0,0.014353]
[1771090615833,0.09070233,69721.0,69701.0,0.158]
[1771090616034,0.09070233,69720.0,69702.0,0.158]
[1771090616229,0.09070233,69718.0,69702.0,0.158]
[1771090617536,0.10518233,69719.0,69702.0,0.158]
[1771090617739,0.014352,69704.0,69702.0,0.158]
[1771090618037,0.014352,69706.0,69702.0,0.158]
[1771090619132,0.09070233,69728.0,69709.0,0.08914143]
[1771090619330,0.01448,69725.0,69710.0,0.10362143]
[1771090619531,0.01444,69724.0,69710.0,0.24718143]
[1771090619725,0.01444,69724.0,69712.0,0.014351]
[1771090619936,0.01444,69724.0,69713.0,0.01435]
[1771090620133,0.01444,69724.0,69712.0,0.014351]
[1771090620134,0.14356,69731.0,69722.0,0.014349]
[1771090620336,0.01448,69736.0,69724.0,0.014348]
[1771090620536,0.01448,69736.0,69725.0,0.014348]
[1771090620731,0.01448,69736.0,69724.0,0.10348943]
[1771090620937,0.01448,69736.0,69728.0,0.014347]
[1771090621235,0.14356,69740.0,69728.0,0.014347]
[1771090621531,0.01448,69747.0,69733.0,0.11783343]
[1771090621733,0.04970706,69747.0,69736.0,0.014346]
[1771090621933,0.23426233,69751.0,69740.0,0.014345]
[1771090621934,0.14028815,69751.0,69740.0,0.014345]
[1771090622136,0.14028815,69751.0,69741.0,0.01448]
[1771090622338,0.10518233,69750.0,69739.0,0.01448]
[1771090623634,0.10518233,69750.0,69737.0,0.01448]
[1771090624838,0.09070233,69748.0,69737.0,0.01448]
[1771090625338,0.15902219,69750.0,69739.0,0.014345]
[1771090625539,0.01448,69750.0,69742.0,0.014344]
[1771090625736,0.01448,69750.0,69742.0,0.01448]
[1771090625936,0.10518233,69750.0,69742.0,0.01448]
[1771090626635,0.09070233,69770.0,69745.0,0.08914143]
[1771090626838,0.32205528,69769.0,69752.0,0.014342]
[1771090627043,0.09070233,69767.0,69752.0,0.028822]
[1771090627433,0.09070233,69767.0,69737.0,0.08914143]
[1771090627638,0.09070233,69765.0,69738.0,0.01448]
[1771090627935,0.09070233,69765.0,69731.0,0.014347]
[1771090627936,0.09070233,69763.0,69735.0,0.01448]
[1771090628137,0.09070233,69761.0,69735.0,0.01448]
[1771090628337,0.09070233,69759.0,69735.0,0.01448]
[1771090628542,0.09070233,69757.0,69735.0,0.01448]
[1771090628743,0.09070233,69755.0,69735.0,0.01448]
[1771090628935,0.09070233,69753.0,69735.0,0.01448]
[1771090629135,0.36025433,69754.0,69735.0,0.01448]
[1771090629136,0.09070233,69751.0,69735.0,0.01448]
[1771090630141,0.01448,69752.0,69735.0,0.01448]
[1771090630341,0.10518233,69752.0,69735.0,0.028826]
[1771090630645,0.10518233,69752.0,69737.0,0.014345]
[1771090631048,0.01448,69752.0,69739.0,0.014345]
[1771090632248,0.01448,69752.0,69740.0,0.01448]
[1771090632748,0.10518233,69752.0,69733.0,0.014346]
[1771090632943,0.10518233,69752.0,69734.0,0.158]
[1771090633346,0.10518233,69752.0,69734.0,0.172346]
[1771090633737,0.10518233,69752.0,69735.0,0.014346]
[1771090633943,0.01448,69752.0,69736.0,0.014346]
[1771090635655,0.01448,69752.0,69737.0,0.10563887]
[1771090635946,0.01448,69752.0,69739.0,0.014345]
[1771090636152,0.01448,69752.0,69740.0,0.01448]
[1771090636552,0.0898826,69758.0,69741.0,0.09129287]
[1771090636853,0.01448,69757.0,69744.0,0.014344]
[1771090637046,0.01448,69757.0,69744.0,0.01448]
[1771090637241,0.01448,69757.0,69744.0,0.028824]
[1771090637453,0.01448,69757.0,69745.0,0.014344]
[1771090638554,0.01448,69757.0,69746.0,0.014344]
[1771090638747,0.01448,69757.0,69745.0,0.014344]
[1771090639449,0.01448,69757.0,69746.0,0.01448]
[1771090639848,0.01448,69757.0,69747.0,0.014343]
[1771090640048,0.01448,69757.0,69749.0,0.014343]
[1771090640352,0.01448,69757.0,69747.0,0.014343]
[1771090641050,0.01448,69757.0,69746.0,0.028824]
[1771090642747,0.01448,69757.0,69747.0,0.028686]
[1771090642951,0.01448,69757.0,69747.0,0.014343]
[1771090643745,0.01448,69757.0,69746.0,0.028824]
[1771090644650,0.01448,69757.0,69748.0,0.014343]
[1771090645046,0.01448,69757.0,69747.0,0.014343]
[1771090645652,0.01448,69757.0,69748.0,0.014343]
[1771090645948,0.01448,69757.0,69751.0,0.014343]
[1771090646139,0.14352,69760.0,69752.0,0.014342]
[1771090646341,0.14352,69760.0,69753.0,0.014342]
[1771090646742,0.03515094,69763.0,69753.0,0.014342]
[1771090646953,0.15577798,69764.0,69753.0,0.014342]
[1771090647255,0.14348,69768.0,69755.0,0.014342]
[1771090647453,0.19308275,69768.0,69756.0,0.028782]
[1771090647654,0.19308275,69768.0,69757.0,0.014341]
[1771090647848,0.19308275,69768.0,69758.0,0.014341]
[1771090648049,0.19308275,69768.0,69757.0,0.014341]
[1771090648850,0.0898826,69772.0,69756.0,0.01444]
[1771090649244,0.0898826,69770.0,69756.0,0.01444]
[1771090651051,0.01444,69771.0,69758.0,0.014341]
[1771090651353,0.01444,69771.0,69757.0,0.014341]
[1771090651853,0.01444,69771.0,69756.0,0.028782]
[1771090651854,0.1043226,69771.0,69756.0,0.028782]
[1771090653155,0.1043226,69771.0,69756.0,0.043124]
[1771090653559,0.1043226,69771.0,69756.0,0.028782]
[1771090653854,0.1043226,69771.0,69756.0,0.01444]
[1771090654262,0.1043226,69771.0,69756.0,0.028782]
[1771090654754,0.21621626,69770.0,69756.0,0.028782]
[1771090654954,0.21621626,69769.0,69756.0,0.028782]
[1771090655154,0.21621626,69768.0,69756.0,0.028782]
[1771090655357,0.1043226,69771.0,69756.0,0.028782]
[1771090655555,0.21622563,69770.0,69756.0,0.028782]
[1771090655758,0.21622563,69769.0,69756.0,0.10573287]
[1771090656055,0.01444,69771.0,69762.0,0.01434]
[1771090656260,0.21620984,69770.0,69761.0,0.014341]
[1771090656450,0.01444,69771.0,69761.0,0.014341]
[1771090656650,0.21620989,69770.0,69761.0,0.014341]
[1771090656850,0.01444,69771.0,69761.0,0.028781]
[1771090657155,0.0898826,69769.0,69761.0,0.01444]
[1771090657457,0.0898826,69769.0,69759.0,0.01444]
[1771090662058,0.2980899,69768.0,69759.0,0.01444]
[1771090662258,0.08181744,69768.0,69759.0,0.01444]
[1771090662954,0.08594738,69766.0,69749.0,0.014343]
[1771090663258,0.08594738,69764.0,69750.0,0.15792]
[1771090663754,0.21633249,69763.0,69750.0,0.15792]
[1771090663958,0.08594738,69763.0,69750.0,0.15792]
[1771090665660,0.08594738,69763.0,69743.0,0.014344]
[1771090665954,0.08594738,69763.0,69744.0,0.15792]
[1771090666154,0.08594738,69763.0,69730.0,0.014347]
[1771090666352,0.08594738,69759.0,69731.0,0.01444]
[1771090666553,0.08594738,69757.0,69731.0,0.01444]
[1771090666758,0.08594738,69755.0,69731.0,0.01444]
[1771090666957,0.08594738,69753.0,69731.0,0.01444]
[1771090667153,0.08594738,69751.0,69731.0,0.01444]
[1771090667354,0.08594738,69749.0,69732.0,0.01444]
[1771090667550,0.08594738,69747.0,69728.0,0.01444]
[1771090667760,0.08594738,69745.0,69728.0,0.01444]
[1771090668261,0.08594738,69745.0,69716.0,0.01435]
[1771090668460,0.08594738,69739.0,69708.0,0.014351]
[1771090668761,0.08594738,69737.0,69709.0,0.172271]
[1771090668955,0.08594738,69735.0,69712.0,0.014351]
[1771090669154,0.08594738,69735.0,69711.0,0.014351]
[1771090669360,0.08594738,69733.0,69711.0,0.014351]
[1771090669558,0.08594738,69731.0,69711.0,0.014351]
[1771090669856,0.08594738,69729.0,69711.0,0.014351]
[1771090670057,0.08594738,69727.0,69711.0,0.014351]
[1771090671160,0.01456632,69728.0,69712.0,0.07869419]
[1771090671358,0.1005137,69728.0,69709.0,0.01444]
[1771090671557,0.1005137,69728.0,69709.0,0.028791]
[1771090671758,0.1005137,69728.0,69704.0,0.14348]
[1771090672053,0.1005137,69728.0,69705.0,0.01444]
[1771090672259,0.08594738,69727.0,69705.0,0.01444]
[1771090672856,0.08594738,69727.0,69705.0,0.028792]
[1771090673267,0.08594738,69727.0,69705.0,0.01444]
[1771090673660,0.08594738,69727.0,69706.0,0.01444]
[1771090678261,0.08594738,69727.0,69709.0,0.014351]
[1771090678958,0.08594738,69727.0,69710.0,0.01444]
[1771090679760,0.08594738,69727.0,69710.0,0.028791]
[1771090680069,0.08594738,69727.0,69710.0,0.01444]
[1771090681070,0.08594738,69727.0,69710.0,0.028791]
[1771090681667,0.08594738,69727.0,69710.0,0.01444]
[1771090682256,0.08594738,69727.0,69711.0,0.01444]
[1771090685661,0.15882119,69728.0,69712.0,0.09304519]
[1771090685857,0.15882119,69728.0,69714.0,0.01435]
[1771090686071,0.15882119,69728.0,69717.0,0.01435]
[1771090686269,0.15882119,69728.0,69716.0,0.01435]
[1771090686671,0.15882119,69728.0,69717.0,0.01444]
[1771090688272,0.08594738,69732.0,69717.0,0.01444]
[1771090688273,0.14356,69739.0,69724.0,0.07869419]
[1771090688479,0.01444,69738.0,69726.0,0.014348]
[1771090688680,0.01444,69738.0,69726.0,0.028788]
[1771090689171,0.01444,69738.0,69730.0,0.014347]
[1771090689478,7.594e-05,69737.0,69729.0,0.014347]
[1771090689772,7.594e-05,69737.0,69730.0,0.01444]
[1771090689976,7.594e-05,69737.0,69731.0,0.014347]
[1771090690168,7.594e-05,69737.0,69730.0,0.01444]
[1771090690767,7.594e-05,69737.0,69730.0,0.028787]
[1771090691069,7.594e-05,69737.0,69727.0,0.014348]
[1771090691275,7.594e-05,69737.0,69729.0,0.014347]
[1771090691576,7.594e-05,69737.0,69729.0,0.028694]
[1771090691877,7.594e-05,69737.0,69733.0,0.014346]
[1771090692072,7.594e-05,69737.0,69729.0,0.014347]
[1771090692273,7.594e-05,69737.0,69731.0,0.014347]
[1771090693076,7.594e-05,69737.0,69732.0,0.01444]
[1771090694681,0.14324665,69750.0,69740.0,0.014345]
[1771090694980,0.14352,69752.0,69741.0,0.01444]
[1771090694981,0.01444,69751.0,69741.0,0.01444]
[1771090695278,0.01444,69751.0,69744.0,0.014344]
[1771090695481,0.03655112,69752.0,69744.0,0.028784]
[1771090695776,0.15796,69755.0,69744.0,0.014344]
[1771090696181,0.19328705,69755.0,69743.0,0.014344]
[1771090696977,0.19328705,69755.0,69743.0,0.028688]
[1771090697173,0.19328705,69755.0,69743.0,0.014344]
[1771090697380,0.19328705,69755.0,69742.0,0.01444]
[1771090698675,0.07858774,69754.0,69742.0,0.01444]
[1771090698878,0.19328705,69755.0,69742.0,0.01444]
[1771090699279,0.15796,69755.0,69742.0,0.01444]
[1771090699474,0.01444,69757.0,69744.0,0.09149499]
[1771090699680,0.01444,69757.0,69748.0,0.014343]
[1771090699879,0.01444,69759.0,69749.0,0.01444]
[1771090702185,0.1151157,69762.0,69749.0,0.01444]
[1771090702186,0.03652796,69762.0,69749.0,0.01444]
[1771090702383,0.285773,69763.0,69749.0,0.028783]
[1771090702983,0.17951691,69763.0,69751.0,0.014343]
[1771090703181,0.17951691,69763.0,69750.0,0.014343]
[1771090703381,0.14352,69763.0,69750.0,0.014343]
[1771090703584,0.14352,69763.0,69749.0,0.09159099]
[1771090703780,0.14352,69763.0,69749.0,0.10593399]
[1771090704182,0.14352,69763.0,69750.0,0.07715099]
[1771090704486,0.14352,69763.0,69750.0,0.09149399]
[1771090704687,0.19036458,69765.0,69750.0,0.09149399]
[1771090704990,0.19036458,69765.0,69750.0,0.07715099]
[1771090705188,0.07858774,69764.0,69749.0,0.01444]
[1771090706486,0.01444,69770.0,69753.0,0.014342]
[1771090706788,0.23907775,69770.0,69754.0,0.15796]
[1771090707689,0.07858774,69769.0,69754.0,0.15796]
[1771090708684,0.07858774,69769.0,69743.0,0.014344]
[1771090708984,0.07858774,69769.0,69744.0,0.15796]
[1771090709190,0.07858774,69769.0,69745.0,0.01444]
[1771090710192,0.07858774,69767.0,69745.0,0.01444]
[1771090710386,0.07858774,69765.0,69735.0,0.014346]
[1771090710585,0.07858774,69763.0,69732.0,0.014346]
[1771090710786,0.07858774,69761.0,69733.0,0.15792]
[1771090711087,0.21715493,69760.0,69733.0,0.15792]
[1771090711288,0.07858774,69759.0,69733.0,0.15792]
[1771090711490,0.07858774,69757.0,69733.0,0.172266]
[1771090711681,0.07858774,69755.0,69733.0,0.172266]
[1771090711879,0.07858774,69753.0,69733.0,0.172266]
[1771090712283,0.07858774,69753.0,69733.0,0.15792]
[1771090713491,0.07858774,69753.0,69734.0,0.01444]
[1771090713693,0.07858774,69753.0,69735.0,0.01444]
[1771090717493,0.07858774,69753.0,69736.0,0.01444]
[1771090719089,0.21801508,69752.0,69736.0,0.01444]
[1771090719395,0.14508596,69755.0,69736.0,0.01444]
[1771090719396,0.07858774,69750.0,69736.0,0.01444]
[1771090719787,0.07858774,69750.0,69729.0,0.014347]
[1771090719986,0.07858774,69750.0,69730.0,0.15796]
[1771090720786,0.07858774,69750.0,69731.0,0.014347]
[1771090722094,0.07858774,69750.0,69732.0,0.15796]
[1771090722790,0.01444,69751.0,69733.0,0.07336273]
[1771090722991,0.01444,69751.0,69740.0,0.08770773]
[1771090723192,0.01444,69751.0,69741.0,0.01444]
[1771090723993,0.01444,69754.0,69744.0,0.014344]
[1771090724187,0.15792,69756.0,69745.0,0.01444]
[1771090724596,0.14348,69756.0,69745.0,0.01444]
[1771090725699,0.15383313,69758.0,69745.0,0.01444]
[1771090726793,0.15383313,69758.0,69745.0,0.10214673]
[1771090726991,0.15383313,69758.0,69746.0,0.07336273]
[1771090727292,0.15383313,69758.0,69747.0,0.07336273]
[1771090727998,0.15383313,69758.0,69745.0,0.028784]
[1771090729587,0.22143569,69774.0,69756.0,0.014342]
[1771090729791,0.31177298,69773.0,69757.0,0.01444]
[1771090729993,0.09235569,69773.0,69757.0,0.01444]
[1771090730989,0.09235569,69773.0,69757.0,0.028781]
[1771090731392,0.01444,69773.0,69759.0,0.08770373]
[1771090731598,0.01444,69773.0,69760.0,0.014341]
[1771090731798,0.01444,69773.0,69761.0,0.01444]
[1771090738802,0.01444,69773.0,69762.0,0.01434]
[1771090739812,0.01444,69773.0,69761.0,0.01444]
[1771090740513,0.01444,69773.0,69761.0,0.028781]
[1771090740706,0.01444,69773.0,69761.0,0.01444]
[1771090742410,0.01444,69773.0,69761.0,0.028781]
[1771090742714,0.01444,69773.0,69761.0,0.15792]
[1771090742905,0.01444,69773.0,69761.0,0.172261]
[1771090743109,0.01444,69773.0,69761.0,0.15792]
[1771090743919,0.01444,69778.0,69768.0,0.07336273]
[1771090744219,0.01444,69778.0,69768.0,0.01444]
[1771090744918,0.01444,69780.0,69768.0,0.08780273]
[1771090745918,0.01444,69780.0,69768.0,0.01444]
[1771090746213,0.09235569,69780.0,69756.0,0.07336273]
[1771090746416,0.07791569,69778.0,69751.0,0.014343]
[1771090746615,0.07791569,69776.0,69755.0,0.014342]
[1771090746819,0.07791569,69774.0,69755.0,0.014342]
[1771090747116,0.142036,69782.0,69754.0,0.014342]
[1771090747117,0.09235569,69773.0,69754.0,0.014342]
[1771090747319,0.09235569,69772.0,69754.0,0.014342]
[1771090748513,0.09235569,69772.0,69751.0,0.014343]
[1771090748718,0.09235569,69772.0,69752.0,0.15792]
[1771090749513,0.09235569,69772.0,69753.0,0.01444]
[1771090750614,0.07791569,69771.0,69754.0,0.0144]
[1771090751521,0.07791569,69771.0,69755.0,0.0144]
[1771090752210,0.19606154,69772.0,69755.0,0.08776273]
[1771090752414,0.21904259,69771.0,69755.0,0.08776273]
[1771090752616,0.19606154,69772.0,69755.0,0.08776273]
[1771090752816,0.07181798,69770.0,69755.0,0.0144]
[1771090753621,0.07181798,69770.0,69756.0,0.0144]
[1771090754224,0.16071397,69772.0,69759.0,0.0929376]
[1771090754522,0.16071397,69772.0,69760.0,0.0144]
[1771090754824,0.16071397,69772.0,69760.0,0.028741]
[1771090755620,0.01444,69772.0,69763.0,0.0785966]
[1771090755821,0.01444,69772.0,69764.0,0.0144]
[1771090756718,0.0144,69774.0,69764.0,0.0144]
[1771090762024,0.08621798,69774.0,69763.0,0.0144]
[1771090764729,0.08621798,69774.0,69758.0,0.014341]
[1771090765024,0.08621798,69774.0,69759.0,0.0144]
[1771090765822,0.08621798,69774.0,69762.0,0.01434]
[1771090766125,0.0144,69774.0,69765.0,0.01434]
[1771090766626,0.14348,69775.0,69765.0,0.02874]
[1771090767528,0.14348,69775.0,69765.0,0.0929966]
[1771090767730,0.14348,69775.0,69767.0,0.0929356]
[1771090768027,0.14348,69775.0,69767.0,0.014339]
[1771090768229,0.14348,69775.0,69765.0,0.02874]
[1771090768230,0.14348,69775.0,69766.0,0.014339]
[1771090768426,0.0144,69778.0,69766.0,0.014339]
[1771090769429,0.0144,69778.0,69767.0,0.014339]
[1771090769630,0.0144,69778.0,69766.0,0.01434]
[1771090769928,0.0144,69778.0,69765.0,0.02874]
[1771090770131,0.0144,69778.0,69766.0,0.01434]
[1771090771330,0.0144,69778.0,69767.0,0.0144]
[1771090774927,0.0144,69778.0,69772.0,0.014338]
[1771090775125,0.0144,69778.0,69771.0,0.028739]
[1771090775326,0.0144,69783.0,69771.0,0.043077]
[1771090775527,0.0144,69783.0,69771.0,0.1073346]
[1771090776128,0.0144,69783.0,69771.0,0.028738]
[1771090776329,0.0144,69783.0,69771.0,0.0144]
[1771090777837,0.0144,69783.0,69771.0,0.0929966]
[1771090778038,0.0144,69783.0,69771.0,0.1073346]
[1771090778432,0.0144,69783.0,69772.0,0.014338]
[1771090779133,0.0144,69783.0,69771.0,0.0144]
[1771090779338,0.28716506,69784.0,69772.0,0.014338]
[1771090780138,0.14348,69784.0,69772.0,0.014338]
[1771090781728,0.14348,69784.0,69773.0,0.0144]
[1771090784941,0.14348,69784.0,69773.0,0.028738]
[1771090786339,0.14348,69784.0,69779.0,0.014337]
[1771090786537,0.14344,69793.0,69780.0,0.0829711]
[1771090786841,0.0144,69795.0,69785.0,0.014336]
[1771090787041,0.0144,69794.0,69786.0,0.0144]
[1771090787242,0.0144,69795.0,69786.0,0.0144]
[1771090790043,0.0144,69795.0,69787.0,0.014335]
[1771090790232,0.14344,69800.0,69787.0,0.014335]
[1771090790438,0.3688806,69832.0,69792.0,0.014334]
[1771090790439,0.03544504,69805.0,69792.0,0.014334]
[1771090790633,0.0144,69804.0,69793.0,0.0144]
[1771090791641,1.43972,69820.0,69794.0,0.0685711]
[1771090791642,0.005,69820.0,69794.0,0.0685711]
[1771090791837,0.1435,69840.0,69802.0,0.014332]
[1771090791838,0.07308536,69818.0,69802.0,0.014332]
[1771090792036,0.07308536,69818.0,69803.0,0.15784]
[1771090792245,0.07308536,69816.0,69803.0,0.15784]
[1771090793141,0.07308536,69816.0,69805.0,0.014332]
[1771090794145,0.07308536,69816.0,69804.0,0.014332]
[1771090795737,0.07308536,69816.0,69803.0,0.0144]
[1771090796044,0.07308536,69845.0,69806.0,0.14399193]
[1771090796344,0.14399193,69870.0,69808.0,0.716572]
[1771090796345,0.07470896,69840.0,69808.0,0.716572]
[1771090796540,0.0469602,69834.0,69828.0,0.014327]